[Event "CAT-chT Honor Division 2019"]
[Site "Catalonia"]
[Date "2019.01.26"]
[Round "2"]
[White "Garrido Fernandez, Daniel"]
[Black "Mundet Riera, Jaume"]
[Result "1/2-1/2"]
[ECO "C28"]
[WhiteElo "2194"]
[BlackElo "2090"]
[Annotator "NA"]
[PlyCount "46"]
[EventDate "2019.01.16"]
[EventType "team-tourn"]
[EventCountry "ESP"]
[SourceTitle "playchess.com"]
[Source "ChessBase"]
[SourceQuality "1"]
[WhiteTeam "Foment"]
[BlackTeam "Gerunda"]
[TimeControl "5400+30"]

1. e4 {[%emt 0:00:00]} e5 {[%emt 0:00:41]} 2. Nc3 {[%emt 0:00:00]} Nf6 {[%emt 0:02:03]} 3. Bc4 {[%emt 0:00:00]} Nc6 {[%emt 0:00:41]} 4. d3 {[%emt 0:00:00]} Na5 {[%emt 0:03:56]} 5. Nge2 {[%emt 0:00:06]} Nxc4 {[%emt 0:00:32]} 6. dxc4 {[%emt 0:00:03]} Bc5 {[%emt 0:04:15]} 7. O-O {[%emt 0:01:03]} d6 {[%emt 0:01:47]} 8. Bg5 {[%emt 0:01:56]} h6 {[%emt 0:02:09]} 9. Bxf6 {[%emt 0:00:14]} Qxf6 {[%emt 0:00:46]} 10. Nd5 {[%emt 0:00:07]} Qd8 {[%emt 0:00:09]} 11. b4 {[%emt 0:00:09]} Bb6 {[%emt 0:00:13]} 12. a4 {[%emt 0:00:43]} a5 {[%emt 0:07:51]} 13. Nxb6 {[%emt 0:00:52]} cxb6 {[%emt 0:00:38]} 14. Nc3 {[%emt 0:03:41]} axb4 {[%emt 0:06:28]} 15. Nd5 {[%emt 0:00:49]} Be6 {[%emt 0:01:48]} 16. Rb1 {[%emt 0:03:14]} Bxd5 {[%emt 0:05:14]} 17. Qxd5 {[%emt 0:00:07]} Rxa4 {[%emt 0:04:11]} 18. Qxb7 {[%emt 0:28:43]} O-O {[%emt 0:00:30]} 19. Qc6 {[%emt 0:01:42]} Qa8 {[%emt 0:04:01]} 20. Qxb6 {[%emt 0:20:47]} Qxe4 {[%emt 0:02:37]} 21. Qxd6 {[%emt 0:02:10]} Qxc4 {[%emt 0:01:17]} 22. Qxe5 {[%emt 0:01:53]} Qxc2 {[%emt 0:17:57]} 23. Qf5 Qc4 1/2-1/2

[Event "CAT-chT Honor Division 2019"]
[Site "Catalonia"]
[Date "2019.01.26"]
[Round "2"]
[White "Escandell, Juan C"]
[Black "Obon Temprano, Sergi"]
[Result "1/2-1/2"]
[ECO "C81"]
[WhiteElo "2188"]
[BlackElo "2273"]
[Annotator "NA"]
[PlyCount "87"]
[EventDate "2019.01.16"]
[EventType "team-tourn"]
[EventCountry "ESP"]
[SourceTitle "playchess.com"]
[Source "ChessBase"]
[SourceQuality "1"]
[WhiteTeam "Cerdanyola Valles"]
[BlackTeam "Barbera"]
[TimeControl "5400+30"]

1. e4 e5 2. Nf3 Nc6 3. Bb5 a6 4. Ba4 Nf6 5. O-O Nxe4 6. d4 b5 7. Bb3 d5 8. dxe5 Be6 9. Be3 Bc5 10. Qe2 Bxe3 11. Qxe3 O-O 12. Rd1 Ne7 13. Nbd2 Nxd2 14. Rxd2 c6 15. Re1 Qd7 16. c3 Rfd8 17. a4 Qa7 18. Nd4 c5 19. Nxe6 fxe6 20. Qh3 Qd7 21. Bc2 g6 22. Qg4 Rf8 23. h4 Nf5 24. h5 Qg7 25. hxg6 Qxg6 26. Qh3 Ra7 27. Re3 Qg5 28. Bxf5 Qxf5 29. Rg3+ Rg7 30. Rxg7+ Kxg7 31. Qe3 Qf4 32. Qxf4 Rxf4 33. axb5 axb5 34. g3 Re4 35. f4 h5 36. Kf2 h4 37. Kf3 hxg3 38. Rg2 b4 39. Rxg3+ Kf7 40. Rh3 bxc3 41. bxc3 Kg7 42. Rg3+ Kf7 43. Rh3 Kg7 44. Rg3+ 1/2-1/2

[Event "CAT-chT Honor Division 2019"]
[Site "Catalonia"]
[Date "2019.01.26"]
[Round "2"]
[White "Rivas Garcia, Victor"]
[Black "Garcia Acosta, Roger"]
[Result "1-0"]
[ECO "C54"]
[WhiteElo "2183"]
[BlackElo "2096"]
[Annotator "NA"]
[PlyCount "65"]
[EventDate "2019.01.16"]
[EventType "team-tourn"]
[EventCountry "ESP"]
[SourceTitle "playchess.com"]
[Source "ChessBase"]
[SourceQuality "1"]
[WhiteTeam "Barbera"]
[BlackTeam "Cerdanyola Valles"]
[TimeControl "5400+30"]

1. e4 e5 2. Nf3 Nc6 3. Bc4 Bc5 4. c3 Nf6 5. d3 a6 6. Bb3 O-O 7. Nbd2 Ba7 8. Nc4 d6 9. Bg5 h6 10. Bh4 Be6 11. Ne3 Na5 12. Bxe6 fxe6 13. Ng4 Kh7 14. Bxf6 Rxf6 15. Nxf6+ Qxf6 16. h4 d5 17. Qe2 Nc6 18. h5 b5 19. Rh4 d4 20. Rg4 Rd8 21. Rc1 Rd6 22. c4 Qf7 23. cxb5 axb5 24. Rxc6 Rxc6 25. Nxe5 Qe8 26. Nxc6 Qxc6 27. Kd1 Bb6 28. e5 Kg8 29. Qe4 Qd7 30. Qg6 c5 31. Qxh6 c4 32. Qg6 Bc5 33. h6 1-0

[Event "CAT-chT Honor Division 2019"]
[Site "Catalonia"]
[Date "2019.01.26"]
[Round "2"]
[White "Chalmeta Ugas, Jordi"]
[Black "Parramon Ros, Francesc"]
[Result "1/2-1/2"]
[ECO "D31"]
[WhiteElo "2142"]
[BlackElo "2077"]
[Annotator "NA"]
[PlyCount "56"]
[EventDate "2019.01.16"]
[EventType "team-tourn"]
[EventCountry "ESP"]
[SourceTitle "playchess.com"]
[Source "ChessBase"]
[SourceQuality "1"]
[WhiteTeam "Foment"]
[BlackTeam "Gerunda"]
[TimeControl "5400+30"]

1. d4 {[%emt 0:00:00]} d5 {[%emt 0:00:00]} 2. c4 {[%emt 0:00:00]} e6 {[%emt 0:00:00]} 3. Nc3 {[%emt 0:00:00]} Bb4 {[%emt 0:00:06]} 4. Nf3 {[%emt 0:02:01]} Nf6 {[%emt 0:00:06]} 5. Bg5 {[%emt 0:00:59]} h6 {[%emt 0:02:07]} 6. Bxf6 {[%emt 0:01:59]} Qxf6 {[%emt 0:00:08]} 7. e3 {[%emt 0:00:05]} O-O {[%emt 0:01:40]} 8. Bd3 {[%emt 0:00:12]} dxc4 {[%emt 0:11:12]} 9. Bxc4 {[%emt 0:00:48]} Nc6 {[%emt 0:02:56]} 10. O-O {[%emt 0:02:41]} Bxc3 {[%emt 0:03:49]} 11. bxc3 {[%emt 0:00:24]} e5 {[%emt 0:01:16]} 12. Bd5 {[%emt 0:04:42]} exd4 {[%emt 0:17:56]} 13. cxd4 {[%emt 0:01:13]} Rd8 {[%emt 0:09:20]} 14. Be4 {[%emt 0:03:23]} Bf5 {[%emt 0:08:54]} 15. Bxf5 {[%emt 0:01:56]} Qxf5 {[%emt 0:00:05]} 16. Qb3 {[%emt 0:00:22]} Na5 {[%emt 0:06:42]} 17. Qc3 {[%emt 0:00:40]} Rac8 {[%emt 0:01:57]} 18. Ne5 {[%emt 0:06:20]} b6 {[%emt 0:01:13]} 19. Nc6 {[%emt 0:01:03]} Nxc6 {[%emt 0:06:30]} 20. Qxc6 {[%emt 0:00:25]} Rd6 {[%emt 0:00:32]} 21. Qb7 {[%emt 0:08:49]} a5 {[%emt 0:08:09]} 22. Rac1 {[%emt 0:00:52]} c5 {[%emt 0:06:28]} 23. dxc5 {[%emt 0:00:50]} Rdc6 {[%emt 0:01:09]} 24. h3 {[%emt 0:10:08]} Rxc5 {[%emt 0:04:00]} 25. Rxc5 {[%emt 0:00:21]} Qxc5 {[%emt 0:00:06]} 26. Rb1 {[%emt 0:00:12]} Rc6 {[%emt 0:00:45]} 27. Rd1 {[%emt 0:05:25]} Rf6 {[%emt 0:01:34]} 28. Qe4 {[%emt 0:07:45]} Qf5 {[%emt 0:00:05]} 1/2-1/2

[Event "CAT-chT Honor Division 2019"]
[Site "Catalonia"]
[Date "2019.01.26"]
[Round "2"]
[White "Salagran Ferragut, Guillem"]
[Black "Arias Boo, Guillermo"]
[Result "0-1"]
[ECO "B07"]
[WhiteElo "2105"]
[BlackElo "2250"]
[Annotator "NA"]
[PlyCount "72"]
[EventDate "2019.01.16"]
[EventType "team-tourn"]
[EventCountry "ESP"]
[SourceTitle "playchess.com"]
[Source "ChessBase"]
[SourceQuality "1"]
[WhiteTeam "Gerunda"]
[BlackTeam "Foment"]
[TimeControl "5400+30"]

1. e4 {[%emt 0:00:00]} d6 {[%emt 0:00:17]} 2. d4 {[%emt 0:00:00]} Nf6 {[%emt 0:00:04]} 3. Nc3 {[%emt 0:00:00]} Nbd7 {[%emt 0:00:06]} 4. Nf3 {[%emt 0:01:06]} e5 {[%emt 0:00:08]} 5. Bc4 {[%emt 0:02:50]} Be7 {[%emt 0:00:07]} 6. O-O {[%emt 0:17:59]} c6 {[%emt 0:00:32]} 7. a4 {[%emt 0:00:11]} Qc7 {[%emt 0:00:19]} 8. Ba2 {[%emt 0:00:18]} h6 {[%emt 0:01:48]} 9. Re1 {[%emt 0:02:11]} Nf8 {[%emt 0:04:28]} 10. h3 {[%emt 0:03:26]} g5 {[%emt 0:02:38]} 11. Nh2 {[%emt 0:08:46]} Ng6 {[%emt 0:01:37]} 12. Be3 {[%emt 0:04:59]} Nf4 {[%emt 0:04:04]} 13. Ng4 {[%emt 0:06:56]} h5 {[%emt 0:10:16]} 14. Nxf6+ {[%emt 0:02:54]} Bxf6 {[%emt 0:00:15]} 15. h4 {[%emt 0:15:53]} Qe7 {[%emt 0:05:41]} 16. hxg5 {[%emt 0:16:49]} Bxg5 {[%emt 0:00:19]} 17. Bxf4 {[%emt 0:03:23]} Bxf4 {[%emt 0:00:26]} 18. Ne2 {[%emt 0:00:22]} Bg4 {[%emt 0:07:57]} 19. Qd3 {[%emt 0:01:58]} Bxe2 {[%emt 0:08:51]} 20. Rxe2 {[%emt 0:00:01]} Qh4 {[%emt 0:02:28]} 21. g3 {[%emt 0:03:19]} Qg4 {[%emt 0:03:22]} 22. Kg2 {[%emt 0:04:29]} h4 {[%emt 0:02:54]} 23. Rh1 {[%emt 0:00:33]} O-O-O {[%emt 0:01:30]} 24. Ree1 {[%emt 0:02:33]} hxg3 {[%emt 0:11:12]} 25. fxg3 {[%emt 0:00:02]} Rdg8 {[%emt 0:01:06]} 26. Rxh8 {[%emt 0:00:30]} Rxh8 {[%emt 0:00:12]} 27. Rg1 {[%emt 0:00:55]} exd4 {[%emt 0:01:43]} 28. Qf3 {[%emt 0:00:55]} Rh2+ {[%emt 0:00:11]} 29. Kxh2 {[%emt 0:00:29]} Qxf3 {[%emt 0:00:08]} 30. gxf4 {[%emt 0:00:02]} Qxf4+ {[%emt 0:00:12]} 31. Rg3 {[%emt 0:00:59]} Qxe4 {[%emt 0:00:14]} 32. Bb3 {[%emt 0:00:12]} d5 {[%emt 0:00:17]} 33. Kh3 {[%emt 0:00:52]} a5 {[%emt 0:00:13]} 34. Rg4 {[%emt 0:00:21]} Qf3+ {[%emt 0:00:34]} 35. Kh4 {[%emt 0:00:02]} d3 {[%emt 0:00:44]} 36. cxd3 {[%emt 0:01:05]} Qxd3 {[%emt 0:00:27]} 0-1

[Event "CAT-chT Honor Division 2019"]
[Site "Catalonia"]
[Date "2019.01.26"]
[Round "2"]
[White "Guso Llorca, Jordi"]
[Black "Alvarez Albiol, Victor"]
[Result "1/2-1/2"]
[ECO "A05"]
[WhiteElo "2079"]
[BlackElo "2117"]
[Annotator "NA"]
[PlyCount "162"]
[EventDate "2019.01.16"]
[EventType "team-tourn"]
[EventCountry "ESP"]
[SourceTitle "playchess.com"]
[Source "ChessBase"]
[SourceQuality "1"]
[WhiteTeam "Gerunda"]
[BlackTeam "Foment"]
[TimeControl "5400+30"]

1. Nf3 {[%emt 0:00:00]} Nf6 {[%emt 0:00:00]} 2. g3 {[%emt 0:00:00]} g6 {[%emt 0:00:00]} 3. Bg2 {[%emt 0:00:00]} Bg7 {[%emt 0:00:00]} 4. O-O {[%emt 0:00:00]} O-O {[%emt 0:00:05]} 5. c4 {[%emt 0:00:00]} d6 {[%emt 0:00:46]} 6. Nc3 {[%emt 0:00:04]} e5 {[%emt 0:01:54]} 7. d3 {[%emt 0:00:07]} c5 {[%emt 0:00:54]} 8. e3 {[%emt 0:00:24]} Nc6 {[%emt 0:00:25]} 9. a3 {[%emt 0:01:31]} h6 {[%emt 0:06:37]} 10. Qc2 {[%emt 0:10:06]} Be6 {[%emt 0:01:18]} 11. e4 {[%emt 0:05:06]} Qd7 {[%emt 0:08:30]} 12. Nd5 {[%emt 0:01:22]} Bxd5 {[%emt 0:04:11]} 13. cxd5 {[%emt 0:03:01]} Nd4 {[%emt 0:03:15]} 14. Nxd4 {[%emt 0:00:10]} cxd4 {[%emt 0:00:20]} 15. Qb3 {[%emt 0:00:59]} a5 {[%emt 0:01:20]} 16. a4 Qc7 {[%emt 0:05:30]} 17. Bd2 {[%emt 0:05:20]} Nd7 {[%emt 0:00:45]} 18. Rfc1 {[%emt 0:02:50]} Nc5 {[%emt 0:01:03]} 19. Qb5 {[%emt 0:01:12]} Qd8 {[%emt 0:26:12]} 20. Ra3 {[%emt 0:02:34]} Qe8 {[%emt 0:04:14]} 21. Qc4 {[%emt 0:02:53]} f5 {[%emt 0:03:11]} 22. b4 {[%emt 0:00:34]} axb4 {[%emt 0:03:21]} 23. Bxb4 {[%emt 0:00:08]} fxe4 {[%emt 0:06:00]} 24. Bxc5 {[%emt 0:01:57]} dxc5 {[%emt 0:02:02]} 25. Bxe4 {[%emt 0:00:08]} Qf7 {[%emt 0:03:51]} 26. d6 {[%emt 0:01:21]} Qxc4 {[%emt 0:01:53]} 27. Rxc4 {[%emt 0:00:28]} Ra5 {[%emt 0:02:06]} 28. Bxb7 {[%emt 0:03:44]} Rd8 {[%emt 0:00:36]} 29. Be4 {[%emt 0:00:53]} Rxd6 {[%emt 0:00:12]} 30. Rb3 Rda6 {[%emt 0:01:29]} 31. Rb5 {[%emt 0:05:12]} Rxa4 32. Rxa4 {[%emt 0:00:08]} Rxa4 {[%emt 0:01:15]} 33. Rxc5 {[%emt 0:00:09]} Ra6 {[%emt 0:00:30]} 34. Rc7 {[%emt 0:00:13]} Rd6 {[%emt 0:02:19]} 35. Kg2 {[%emt 0:00:21]} Rb6 {[%emt 0:02:46]} 36. h4 {[%emt 0:00:25]} Rd6 {[%emt 0:01:57]} 37. Rc8+ {[%emt 0:02:33]} Kf7 {[%emt 0:00:56]} 38. Rc7+ {[%emt 0:00:13]} Kf6 {[%emt 0:00:43]} 39. Kf3 {[%emt 0:00:11]} h5 {[%emt 0:01:22]} 40. Bc6 {[%emt 0:01:43]} Bf8 {[%emt 0:00:59]} 41. Ke4 {[%emt 0:02:13]} Be7 {[%emt 0:01:34]} 42. Be8 {[%emt 0:01:35]} Re6 {[%emt 0:01:01]} 43. f3 {[%emt 0:00:55]} Kg7 {[%emt 0:01:46]} 44. Bd7 {[%emt 0:01:40]} Rb6 {[%emt 0:00:13]} 45. Be8 {[%emt 0:03:51]} Re6 {[%emt 0:00:27]} 46. Rb7 {[%emt 0:00:11]} Kf6 {[%emt 0:01:15]} 47. Rd7 {[%emt 0:02:41]} Rd6 {[%emt 0:00:26]} 48. Ra7 {[%emt 0:00:46]} Re6 {[%emt 0:00:20]} 49. Rb7 {[%emt 0:00:12]} Kg7 {[%emt 0:01:30]} 50. Kd5 {[%emt 0:01:06]} Kf6 {[%emt 0:00:15]} 51. Rd7 {[%emt 0:01:21]} Rb6 {[%emt 0:00:37]} 52. Bxg6 {[%emt 0:09:09]} Rb3 {[%emt 0:00:05]} 53. Ke4 {[%emt 0:01:44]} Rb2 {[%emt 0:00:33]} 54. Bxh5 {[%emt 0:01:08]} Rg2 {[%emt 0:00:17]} 55. Bg4 {[%emt 0:05:02]} Rxg3 {[%emt 0:00:26]} 56. Rb7 {[%emt 0:00:14]} Bd8 {[%emt 0:01:00]} 57. Rb8 {[%emt 0:00:33]} Ke7 {[%emt 0:00:52]} 58. h5 {[%emt 0:00:15]} Rg1 {[%emt 0:00:21]} 59. h6 {[%emt 0:00:48]} Rh1 {[%emt 0:00:18]} 60. Rb7+ {[%emt 0:00:09]} Kf6 {[%emt 0:00:26]} 61. h7 {[%emt 0:00:11]} Be7 {[%emt 0:00:33]} 62. Rb6+ {[%emt 0:01:59]} Kg5 {[%emt 0:00:01]} 63. Kxe5 {[%emt 0:03:59]} Rxh7 {[%emt 0:00:02]} 64. Kxd4 {[%emt 0:00:11]} Bf6+ {[%emt 0:00:59]} 65. Ke4 {[%emt 0:00:23]} Re7+ {[%emt 0:00:11]} 66. Be6 {[%emt 0:00:14]} Bc3 67. f4+ {[%emt 0:01:12]} Kf6 {[%emt 0:00:44]} 68. f5 {[%emt 0:00:10]} Rg7 {[%emt 0:01:35]} 69. Bc4+ {[%emt 0:02:47]} Ke7 {[%emt 0:00:29]} 70. Re6+ {[%emt 0:00:45]} Kf7 71. Rc6+ {[%emt 0:09:00]} Ke7 {[%emt 0:01:04]} 72. Be6 {[%emt 0:01:19]} Bb2 {[%emt 0:00:40]} 73. Rc4 {[%emt 0:02:14]} Rg4+ {[%emt 0:00:51]} 74. Kd5 {[%emt 0:00:05]} Rg3 {[%emt 0:00:40]} 75. d4 Rd3 {[%emt 0:00:26]} 76. Rb4 {[%emt 0:01:47]} Ba1 77. Ke4 {[%emt 0:01:32]} Rd2 {[%emt 0:00:35]} 78. Rb7+ {[%emt 0:00:39]} Kf6 {[%emt 0:01:07]} 79. Rf7+ {[%emt 0:00:34]} Kg5 {[%emt 0:00:01]} 80. Rd7 {[%emt 0:01:00]} Kf6 {[%emt 0:00:21]} 81. Bc4 {[%emt 0:00:37]} Rxd4+ {[%emt 0:00:30] Ke5+} 1/2-1/2

[Event "CAT-chT Honor Division 2019"]
[Site "Catalonia"]
[Date "2019.01.26"]
[Round "2"]
[White "Rovira Vila, Jaume"]
[Black "Llaneza Vega, Patricia"]
[Result "1/2-1/2"]
[ECO "B01"]
[WhiteElo "2074"]
[BlackElo "2139"]
[Annotator "NA"]
[PlyCount "87"]
[EventDate "2019.01.16"]
[EventType "team-tourn"]
[EventCountry "ESP"]
[SourceTitle "playchess.com"]
[Source "ChessBase"]
[SourceQuality "1"]
[WhiteTeam "Gerunda"]
[BlackTeam "Foment"]
[TimeControl "5400+30"]

1. e4 {[%emt 0:00:00]} d5 {[%emt 0:00:00]} 2. exd5 {[%emt 0:00:00]} Qxd5 {[%emt 0:00:00]} 3. Nc3 {[%emt 0:00:00]} Qa5 {[%emt 0:00:00]} 4. d4 {[%emt 0:00:00]} Nf6 {[%emt 0:00:18]} 5. a3 {[%emt 0:00:16]} e5 {[%emt 0:10:33]} 6. Nf3 {[%emt 0:00:29]} exd4 {[%emt 0:00:26]} 7. Nxd4 {[%emt 0:00:32]} Bg4 {[%emt 0:18:01]} 8. Be2 {[%emt 0:10:23]} Qe5 {[%emt 0:08:37]} 9. Be3 {[%emt 0:04:48]} Bxe2 {[%emt 0:00:12]} 10. Qxe2 {[%emt 0:01:40]} Nc6 {[%emt 0:09:07]} 11. Nxc6 {[%emt 0:07:39]} bxc6 {[%emt 0:00:20]} 12. Qc4 {[%emt 0:00:31]} Qe6 {[%emt 0:02:17]} 13. Qxe6+ {[%emt 0:03:02]} fxe6 {[%emt 0:00:09]} 14. O-O-O {[%emt 0:04:19]} Bd6 {[%emt 0:02:04]} 15. f3 {[%emt 0:08:06]} O-O {[%emt 0:12:37]} 16. Kb1 {[%emt 0:20:32]} Nd5 {[%emt 0:02:32]} 17. Bd2 {[%emt 0:02:29]} Rab8 {[%emt 0:04:03]} 18. Ka2 {[%emt 0:01:32]} Bf4 {[%emt 0:08:26]} 19. Bxf4 {[%emt 0:04:01]} Nxc3+ {[%emt 0:00:04]} 20. bxc3 {[%emt 0:00:08]} Rxf4 {[%emt 0:00:02]} 21. Rb1 {[%emt 0:01:41]} Rb5 {[%emt 0:02:50]} 22. Rhd1 {[%emt 0:03:35]} Rd5 {[%emt 0:00:46]} 23. Rd3 {[%emt 0:01:34]} Rc4 {[%emt 0:02:59]} 24. Rb8+ {[%emt 0:02:20]} Kf7 {[%emt 0:00:13]} 25. Kb3 {[%emt 0:00:23]} Rh4 {[%emt 0:03:00]} 26. h3 {[%emt 0:01:12]} Ke7 {[%emt 0:01:00]} 27. Rb4 {[%emt 0:02:26]} Rxb4+ {[%emt 0:00:41]} 28. cxb4 {[%emt 0:00:32]} Re5 {[%emt 0:00:58]} 29. Rd2 {[%emt 0:00:36]} Re3+ {[%emt 0:03:05]} 30. c3 {[%emt 0:00:44]} a6 {[%emt 0:00:08]} 31. Kc4 {[%emt 0:00:40]} Re5 {[%emt 0:00:58]} 32. a4 {[%emt 0:01:08]} g5 {[%emt 0:01:14]} 33. a5 {[%emt 0:01:50]} h5 {[%emt 0:01:01]} 34. Kd4 {[%emt 0:01:13]} Rd5+ {[%emt 0:00:28]} 35. Ke3 {[%emt 0:00:16]} Rb5 {[%emt 0:01:32]} 36. Kd3 {[%emt 0:01:36]} c5 {[%emt 0:01:29]} 37. Kc4 {[%emt 0:00:21]} cxb4 {[%emt 0:00:07]} 38. cxb4 {[%emt 0:00:07]} Re5 {[%emt 0:01:51]} 39. Rb2 {[%emt 0:01:42]} Kd6 {[%emt 0:00:05]} 40. Rd2+ {[%emt 0:00:43]} Ke7 {[%emt 0:00:12]} 41. Rc2 {[%emt 0:02:39]} Kd6 {[%emt 0:00:32]} 42. Kd4 {[%emt 0:00:55]} Rd5+ {[%emt 0:00:13]} 43. Ke4 {[%emt 0:00:43]} Re5+ {[%emt 0:00:24]} 44. Kd4 {[%emt 0:01:57] Kd5+} 1/2-1/2

[Event "CAT-chT Honor Division 2019"]
[Site "Catalonia"]
[Date "2019.01.26"]
[Round "2"]
[White "Valencia Jimenez, Jose"]
[Black "Martinez Ramirez, Erik"]
[Result "1/2-1/2"]
[ECO "A45"]
[WhiteElo "2058"]
[BlackElo "2222"]
[Annotator "NA"]
[PlyCount "86"]
[EventDate "2019.01.16"]
[EventType "team-tourn"]
[EventCountry "ESP"]
[SourceTitle "playchess.com"]
[Source "ChessBase"]
[SourceQuality "1"]
[WhiteTeam "Cerdanyola Valles"]
[BlackTeam "Barbera"]
[TimeControl "5400+30"]

1. d4 Nf6 2. Bg5 Ne4 3. Bf4 d5 4. f3 Nf6 5. Nc3 Bf5 6. e3 e6 7. Bd3 Nh5 8. Bg3 Nxg3 9. hxg3 Bd6 10. Nge2 c6 11. g4 Bxd3 12. Qxd3 Qg5 13. Rh5 Qg6 14. Qxg6 fxg6 15. Rh3 g5 16. O-O-O Nd7 17. f4 Nf6 18. fxg5 Nxg4 19. Rdh1 Kf7 20. Kd2 Kg6 21. Rh4 Kxg5 22. Rxh7 Rxh7 23. Rxh7 Rg8 24. Rh3 Rf8 25. Rf3 Rxf3 26. gxf3 Nh2 27. f4+ Kg4 28. Kd3 b6 29. Nd1 Nf1 30. a3 Be7 31. c4 Bh4 32. cxd5 exd5 33. e4 dxe4+ 34. Kxe4 g6 35. Ne3+ Nxe3 36. Kxe3 Kf5 37. Kf3 Be1 38. a4 b5 39. b3 bxa4 40. bxa4 a5 41. Nc1 Bd2 42. Ne2 Be1 43. Nc1 Bd2 1/2-1/2

[Event "CAT-chT Honor Division 2019"]
[Site "Catalonia"]
[Date "2019.02.02"]
[Round "3"]
[White "Sosa, Tomas"]
[Black "Diaz Camallonga, Carles"]
[Result "1/2-1/2"]
[ECO "C07"]
[WhiteElo "2499"]
[BlackElo "2432"]
[Annotator "RC"]
[PlyCount "61"]
[EventDate "2019.01.16"]
[EventType "team-tourn"]
[EventCountry "ESP"]
[SourceTitle "playchess.com"]
[Source "ChessBase"]
[SourceQuality "1"]
[WhiteTeam "Mollet"]
[BlackTeam "Colon Sabadell"]
[TimeControl "5400+30"]

1. e4 e6 2. d4 d5 3. Nd2 c5 4. exd5 Qxd5 5. Ngf3 cxd4 6. Bc4 Qd6 7. O-O Nf6 8. Nb3 Nc6 9. Nbxd4 Nxd4 10. Nxd4 Be7 11. b3 O-O 12. Bb2 Qf4 13. Qc1 Qxc1 14. Raxc1 Rd8 15. Rcd1 Bd7 16. Be2 Rac8 17. c4 a5 18. Bf3 b6 19. g3 a4 20. h4 Kf8 21. Bb7 Rc7 22. Bg2 Be8 23. Nf3 Rxd1 24. Rxd1 b5 25. Ne5 axb3 26. axb3 bxc4 27. bxc4 Bc5 28. Nd3 Be7 29. Ne5 Bc5 30. Nd3 Be7 31. Ne5 1/2-1/2

[Event "CAT-chT Honor Division 2019"]
[Site "Catalonia"]
[Date "2019.02.02"]
[Round "3"]
[White "Rios, Cristhian Camilo"]
[Black "Lorenzo De La Riva, Lazaro"]
[Result "1-0"]
[ECO "E90"]
[WhiteElo "2482"]
[BlackElo "2397"]
[Annotator "RC"]
[PlyCount "99"]
[EventDate "2019.01.16"]
[EventType "team-tourn"]
[EventCountry "ESP"]
[SourceTitle "playchess.com"]
[Source "ChessBase"]
[SourceQuality "1"]
[WhiteTeam "Mollet"]
[BlackTeam "Colon Sabadell"]
[TimeControl "5400+30"]

1. d4 Nf6 2. c4 g6 3. Nc3 Bg7 4. e4 d6 5. Nf3 O-O 6. h3 e5 7. d5 a5 8. Be3 Na6 9. g4 Nd7 10. a3 Ndc5 11. b4 Nd7 12. Rb1 Re8 13. Be2 Nab8 14. c5 axb4 15. axb4 Bf8 16. Na4 Nf6 17. Nd2 Bd7 18. Nc3 c6 19. Nc4 cxd5 20. exd5 dxc5 21. bxc5 Na6 22. g5 Nh5 23. Bxh5 gxh5 24. Ne4 Bf5 25. Nf6+ Kh8 26. d6 Bg7 27. Nxe8 Qxe8 28. d7 Bxd7 29. Nd6 Qe6 30. Qb3 Qxb3 31. Rxb3 Bc6 32. O-O Kg8 33. Nxb7 Bf8 34. Ra1 Nxc5 35. Rxa8 Nxb3 36. Rb8 Nd4 37. Nd6 Kg7 38. Bxd4 Bxd6 39. Rd8 Bc7 40. Rc8 exd4 41. Rxc7 Bb5 42. Rc5 Be2 43. Rd5 d3 44. f4 h4 45. Rd6 Kf8 46. Kf2 Kg8 47. Rh6 Kg7 48. Rxh4 Kg6 49. Rh6+ Kf5 50. Ke3 1-0